fUST/lending_fUST_20240703
["ID","MTS","AMOUNT","RATE_DAILY","PERIOD"]
[331026314,1720013241912,-500.0,0.00015545,2]
[331026315,1720013241934,-1832.37,0.00015545,2]
[331026316,1720013241955,-500.0,0.00015545,2]
[331026317,1720013241977,-500.0,0.00015545,2]
[331026318,1720013241998,-500.0,0.00015545,2]
[331026319,1720013242020,-500.0,0.00015545,2]
[331026320,1720013242041,-500.0,0.00015545,2]
[331026321,1720013242062,-500.0,0.00015545,2]
[331026322,1720013242085,-1072.48,0.00015545,2]
[331026323,1720013242110,-1384.66,0.00015545,2]
[331026324,1720013242130,-500.0,0.00015545,2]
[331026325,1720013242150,-500.0,0.00015545,2]
[331026326,1720013242170,-61197.55301581,0.000156,2]
[331026327,1720013242192,-599.83816328,0.00015616,2]
[331026328,1720013242213,-174.56293143,0.0001581,2]
[331026329,1720013242235,-500.0,0.00015818,2]
[331026330,1720013242260,-10992.20703934,0.00015819,2]
[331026331,1720013242285,-500.0,0.00015819,2]
[331026332,1720013242306,-500.0,0.00015819,2]
[331026333,1720013242328,-500.0,0.00015819,2]
[331026334,1720013242350,-500.0,0.00015819,2]
[331026335,1720013242371,-500.0,0.00015819,2]
[331026336,1720013242390,-500.0,0.00015819,2]
[331026337,1720013242410,-500.0,0.00015819,2]
[331026338,1720013242430,-500.0,0.00015819,2]
[331026339,1720013242450,-500.0,0.00015819,2]
[331026340,1720013242471,-2846.63,0.00015819,2]
[331026341,1720013242492,-1541.83,0.00015819,2]
[331026342,1720013242512,-546.59,0.00015819,2]
[331026343,1720013242532,-500.0,0.00015819,2]
[331026344,1720013242552,-1518.73,0.00015819,2]
[331026345,1720013242574,-588.42,0.00015819,2]
[331026346,1720013242594,-500.0,0.00015819,2]
[331026347,1720013242613,-500.0,0.00015819,2]
[331026348,1720013242634,-500.0,0.00015819,2]
[331026349,1720013242654,-500.0,0.00015819,2]
[331026350,1720013242675,-500.0,0.00015819,2]
[331026351,1720013242694,-500.0,0.00015819,2]
[331026352,1720013242714,-500.0,0.00015819,2]
[331026353,1720013242734,-500.0,0.00015819,2]
[331026354,1720013242755,-1832.37,0.00015819,2]
[331026355,1720013242775,-500.0,0.00015819,2]
[331026356,1720013242794,-500.0,0.00015819,2]
[331026357,1720013242815,-500.0,0.00015819,2]
[331026358,1720013242835,-500.0,0.00015819,2]
[331026359,1720013242857,-500.0,0.00015819,2]
[331026360,1720013242878,-500.0,0.00015819,2]
[331026361,1720013242899,-1072.48,0.00015819,2]
[331026362,1720013242920,-1384.66,0.00015819,2]
[331026363,1720013242944,-500.0,0.00015819,2]
[331026364,1720013242964,-500.0,0.00015819,2]
[331026365,1720013242986,-500.0,0.00015899,2]
[331026366,1720013243008,-295.61,0.00015899,2]
[331026367,1720013243027,-2879.0,0.000159,2]
[331026368,1720013243048,-35057.92176747,0.000159,2]
[331026369,1720013244825,155.87822743,9.9e-05,2]
[331026370,1720013246130,-217.43366611,0.00014997,2]
[331026371,1720013251048,-202.172565,0.00014997,2]
[331026396,1720013432083,154.85414728,9.999e-05,2]
[331026399,1720013432106,21.33463139,9.999e-05,2]
[331026408,1720013432414,-154.05060083,0.00014899,2]
[331026409,1720013432424,-80.39376889,0.00014997,2]
[331026410,1720013432434,-500.0,0.00014997,2]
[331026411,1720013432443,-186.09633836,0.00014997,2]
[331026418,1720013432496,-707.63366164,0.00014997,2]
[331026420,1720013432506,-396.36633836,0.00014997,2]
[331026909,1720013438244,-103.63366164,0.00014997,2]
[331026911,1720013438254,-500.0,0.00014997,2]
[331026913,1720013438263,-672.87,0.00014997,2]
[331026915,1720013438274,-1588.64,0.00014997,2]
[331026917,1720013438283,-500.0,0.00014997,2]
[331026919,1720013438293,-500.0,0.00014997,2]
[331026921,1720013438303,-500.0,0.00014997,2]
[331026923,1720013438312,-500.0,0.00014997,2]
[331026925,1720013438326,-2372.19,0.00014997,2]
[331026927,1720013438339,-500.0,0.00014997,2]
[331026929,1720013438348,-1265.61,0.00014997,2]
[331026931,1720013438358,-500.0,0.00014997,2]
[331026933,1720013438369,-1153.89,0.00014997,2]
[331026935,1720013438378,-500.0,0.00014997,2]
[331026937,1720013438387,-10.69295836,0.00014997,2]
[331027085,1720013440080,-505.36224115,0.00014997,2]
[331027086,1720013440090,-500.0,0.00014997,2]
[331027088,1720013440105,-1526.97,0.00014997,2]
[331027090,1720013440115,-1284.86,0.00014997,2]
[331027092,1720013440124,-11132.49087476,0.00014998,2]
[331027094,1720013440134,-4710.36485402,0.00014999,2]
[331027096,1720013440144,-3137.5012568,0.00014999,2]
[331027098,1720013440154,-315.91682708,0.00014999,2]
[331027100,1720013440164,-1463.15950404,0.00014999,2]
[331027101,1720013440174,-877.0,0.00015256,2]
[331027103,1720013440184,-500.0,0.00015271,2]
[331027106,1720013440194,-500.0,0.00015271,2]
[331027108,1720013440204,-893.73,0.00015271,2]
[331027110,1720013440214,-500.0,0.00015271,2]
[331027111,1720013440223,-500.0,0.00015271,2]
[331027113,1720013440233,-672.87,0.00015271,2]
[331027115,1720013440243,-1588.64,0.00015271,2]
[331027117,1720013440254,-500.0,0.00015271,2]
[331027119,1720013440264,-500.0,0.00015271,2]
[331027121,1720013440274,-2372.19,0.00015271,2]
[331027123,1720013440284,-500.0,0.00015271,2]
[331027125,1720013440294,-1265.61,0.00015271,2]
[331027127,1720013440304,-1153.89,0.00015271,2]
[331027129,1720013440314,-500.0,0.00015271,2]
[331027131,1720013440327,-1526.97,0.00015271,2]
[331027133,1720013440337,-1284.86,0.00015271,2]
[331027135,1720013440349,-2194.6277478,0.0001551,2]
[331027137,1720013440359,-500.0,0.00015545,2]
[331027139,1720013440371,-893.73,0.00015545,2]
[331027141,1720013440381,-500.0,0.00015545,2]
[331027143,1720013440391,-500.0,0.00015545,2]
[331027145,1720013440401,-672.87,0.00015545,2]
[331027147,1720013440412,-1588.64,0.00015545,2]
[331027149,1720013440421,-500.0,0.00015545,2]
[331027151,1720013440431,-500.0,0.00015545,2]
[331027153,1720013440441,-1581.53506793,0.00015545,2]
[331027191,1720013440822,-790.65493207,0.00015545,2]
[331027193,1720013440833,-500.0,0.00015545,2]
[331027195,1720013440844,-1265.61,0.00015545,2]
[331027197,1720013440854,-1153.89,0.00015545,2]
[331027199,1720013440864,-500.0,0.00015545,2]
[331027200,1720013440876,-1526.97,0.00015545,2]
[331027202,1720013440886,-1284.86,0.00015545,2]
[331027204,1720013440896,-500.0,0.00015819,2]
[331027206,1720013440905,-893.73,0.00015819,2]
[331027208,1720013440915,-500.0,0.00015819,2]
[331027210,1720013440925,-500.0,0.00015819,2]
[331027212,1720013440937,-672.87,0.00015819,2]
[331027214,1720013440947,-1588.64,0.00015819,2]
[331027216,1720013440956,-500.0,0.00015819,2]
[331027218,1720013440966,-2372.19,0.00015819,2]
[331027220,1720013440976,-500.0,0.00015819,2]
[331027222,1720013440986,-33.83506795,0.00015819,2]
[331027236,1720013441115,-1231.77493205,0.00015819,2]
[331027238,1720013441125,-1153.89,0.00015819,2]
[331027240,1720013441135,-500.0,0.00015819,2]
[331027242,1720013441144,-1526.97,0.00015819,2]
[331027244,1720013441154,-1015.91024195,0.00015819,2]
[331027882,1720013446519,-500.0,0.00014997,2]
[331027884,1720013446528,-500.0,0.00014997,2]
[331027886,1720013446538,-475.17614282,0.00015271,2]
[331027888,1720013446547,-246.24271798,0.00015819,2]
[331027890,1720013446558,-22.70704007,0.00015819,2]
[331027892,1720013446567,-2509.291775,0.0001591,2]
[331027894,1720013446578,-2779.4389932,0.0001591,2]
[331027896,1720013446587,-150.0,0.00015929,2]
[331027898,1720013446596,-500.0,0.00015994,2]
[331027900,1720013446607,-500.0,0.00015994,2]
[331027902,1720013446616,-500.0,0.00015994,2]
[331027904,1720013446625,-500.0,0.00015994,2]
[331027906,1720013446634,-500.0,0.00015994,2]
[331027908,1720013446643,-500.0,0.00015994,2]
[331027910,1720013446652,-500.0,0.00015994,2]
[331027912,1720013446661,-500.0,0.00015994,2]
[331027914,1720013446671,-490.92415155,0.00015995,2]
[331027916,1720013446680,-29520.23764351,0.00015995,2]
[331033470,1720013646152,544.23934373,9.999e-05,2]
[331033501,1720013826073,1000.0,0.00012,7]
[331033517,1720014331353,-153.0,0.00013591,2]
[331033518,1720014331372,-65.16940777,0.00013593,2]
[331033521,1720014427146,-154.03322,0.00014794,2]
[331033522,1720014428136,-209.809523,0.00014794,2]
[331033523,1720014431106,-190.85974906,0.00014794,2]
[331033524,1720014433115,-10577.7883827,0.00014794,2]
[331033525,1720014433137,-174.82437806,0.00014899,2]
[331033526,1720014433156,-500.0,0.00014997,2]
[331033527,1720014433176,-500.0,0.00014997,2]
[331033528,1720014433198,-2132.92,0.00014997,2]
[331033529,1720014433217,-1148.08,0.00014997,2]
[331033530,1720014433239,-516.72,0.00014997,2]
[331033531,1720014433258,-6611.79130508,0.00014998,2]
[331033532,1720014433277,-2126.25063044,0.00014999,2]
[331033533,1720014433296,-1490.75514448,0.00014999,2]
[331033534,1720014433316,-4710.36485402,0.00014999,2]
[331033535,1720014433341,-500.0,0.00014999,2]
[331033536,1720014433363,-1364.13,0.00014999,2]
[331033537,1720014433384,-500.0,0.00014999,2]
[331033538,1720014433404,-500.0,0.00014999,2]
[331033539,1720014433431,-500.0,0.00014999,2]
[331033540,1720014433453,-500.0,0.00014999,2]
[331033541,1720014433474,-500.0,0.00014999,2]
[331033542,1720014433494,-500.0,0.00014999,2]
[331033543,1720014433515,-500.0,0.00014999,2]
[331033544,1720014433535,-1038.98711475,0.00015,2]
[331033545,1720014433554,-155.0,0.00015,2]
[331033546,1720014433575,-948.76659777,0.00015,2]
[331033547,1720014433594,-807.95624244,0.00015,2]
[331033548,1720014433612,-2420.33375199,0.00015,2]
[331033549,1720014433632,-500.0,0.00015269,2]
[331033550,1720014433654,-500.0,0.00015269,2]
[331033551,1720014433676,-500.0,0.00015269,2]
[331033552,1720014433697,-500.0,0.00015269,2]
[331033553,1720014433718,-595.15,0.00015269,2]
[331033554,1720014433738,-500.0,0.00015269,2]
[331033555,1720014433757,-500.0,0.00015269,2]
[331033556,1720014433778,-500.0,0.00015269,2]
[331033557,1720014433797,-500.0,0.00015269,2]
[331033558,1720014433817,-961.57,0.00015269,2]
[331033559,1720014433836,-500.0,0.00015269,2]
[331033560,1720014433855,-500.0,0.00015269,2]
[331033561,1720014433876,-1127.9,0.00015269,2]
[331033562,1720014433895,-500.0,0.00015269,2]
[331033563,1720014433915,-500.0,0.00015269,2]
[331033564,1720014433934,-500.0,0.0001527,2]
[331033565,1720014433953,-373.74115461,0.00015271,2]
[331033566,1720014433972,-319.06185179,0.00015271,2]
[331033567,1720014433992,-2132.92,0.00015271,2]
[331033568,1720014434010,-1148.08,0.00015271,2]
[331033569,1720014434031,-516.72,0.00015271,2]
[331033570,1720014434052,-500.0,0.00015273,2]
[331033571,1720014434072,-1364.13,0.00015273,2]
[331033572,1720014434236,-500.0,0.00015273,2]
[331033573,1720014434269,-500.0,0.00015273,2]
[331033574,1720014434294,-877.0,0.00015401,2]
[331033575,1720014434315,-951.0,0.000155,2]
[331033576,1720014434339,-500.0,0.00015543,2]
[331033577,1720014434360,-500.0,0.00015543,2]
[331033578,1720014434381,-500.0,0.00015543,2]
[331033579,1720014434401,-500.0,0.00015543,2]
[331033580,1720014434423,-595.15,0.00015543,2]
[331033581,1720014434445,-500.0,0.00015543,2]
[331033582,1720014434466,-500.0,0.00015543,2]
[331033583,1720014434486,-326.01684105,0.00015543,2]
[331033584,1720014434507,-433.8699077,0.00015543,2]
[331033585,1720014434529,-961.57,0.00015543,2]
[331033586,1720014434550,-500.0,0.00015543,2]
[331033587,1720014434570,-500.0,0.00015543,2]
[331033588,1720014434591,-1127.9,0.00015543,2]
[331033589,1720014434612,-500.0,0.00015543,2]
[331033590,1720014434634,-500.0,0.00015543,2]
[331033591,1720014434659,-500.0,0.00015544,2]
[331033592,1720014434682,-500.0,0.00015544,2]
[331033593,1720014434704,-1393.33,0.00015544,2]
[331033594,1720014434727,-500.0,0.00015544,2]
[331033595,1720014434753,-500.0,0.00015544,2]
[331033596,1720014434774,-2132.92,0.00015545,2]
[331033597,1720014434794,-1148.08,0.00015545,2]
[331033598,1720014434815,-516.72,0.00015545,2]
[331033599,1720014434835,-500.0,0.00015547,2]
[331033600,1720014434854,-1364.13,0.00015547,2]
[331033601,1720014434875,-500.0,0.00015547,2]
[331033602,1720014434896,-500.0,0.00015547,2]
[331033603,1720014434918,-5496.10351967,0.000158,2]
[331033604,1720014434938,-2892.6472107,0.000158,2]
[331033605,1720014435155,-151.0,0.000158,2]
[331033608,1720014442111,-545.55,0.00014999,2]
[331033609,1720014442131,-401.20536861,0.00015273,2]
[331033611,1720014491516,-572.96300812,0.00013997,2]
[331033640,1720014634849,-137.02929918,0.00013997,2]
[331033641,1720014634859,-500.0,0.00014997,2]
[331033642,1720014634868,-795.76,0.00014997,2]
[331033643,1720014634879,-500.0,0.00014997,2]
[331033644,1720014634888,-128.96384972,0.00014997,2]
[331033645,1720014634900,-1737.34615028,0.00014997,2]
[331033646,1720014634910,-1033.91,0.00014998,2]
[331033647,1720014634919,-3288.96247907,0.00014998,2]
[331033676,1720014638579,-571.729796,0.00014998,2]
[331033678,1720014638591,-1203.81366938,0.00014998,2]
[331033721,1720014644509,-423.27429447,0.00014998,2]
[331033724,1720014644521,-256.0036371,0.00014998,2]
[331033740,1720014647626,-1065.84880781,0.00014998,2]
[331033741,1720014647636,-500.0,0.00014998,2]
[331033742,1720014647646,-500.0,0.00014998,2]
[331033743,1720014647655,-881.44,0.00014999,2]
[331033744,1720014647664,-422.14568501,0.00014999,2]
[331033745,1720014647675,-1193.61,0.00014999,2]
[331033746,1720014647684,-500.0,0.00014999,2]
[331033747,1720014647693,-4710.36485402,0.00014999,2]
[331033748,1720014647706,-666.31003347,0.00014999,2]
[331033749,1720014647715,-2126.25063044,0.00014999,2]
[331033750,1720014647725,-500.0,0.00014999,2]
[331033751,1720014647734,-500.0,0.00014999,2]
[331033752,1720014647745,-948.76659777,0.00015,2]
[331033753,1720014647755,-155.0,0.00015,2]
[331033754,1720014647765,-300.9860531,0.00015269,2]
[331033755,1720014647775,-500.0,0.00015271,2]
[331033756,1720014647789,-795.76,0.00015271,2]
[331033757,1720014647799,-1866.31,0.00015271,2]
[331033758,1720014647809,-1033.91,0.00015272,2]
[331033759,1720014647819,-500.0,0.00015272,2]
[331033760,1720014647828,-500.0,0.00015272,2]
[331033761,1720014647838,-144.34463139,0.00015273,2]
[331033762,1720014647847,-881.44,0.00015273,2]
[331033763,1720014647858,-155.0,0.00015273,2]
[331033764,1720014647869,-1193.61,0.00015273,2]
[331033765,1720014647878,-500.0,0.00015273,2]
[331033766,1720014647888,-500.0,0.00015273,2]
[331033767,1720014647898,-500.0,0.00015273,2]
[331033768,1720014647908,-877.0,0.00015401,2]
[331033769,1720014647919,-562.21586177,0.00015544,2]
[331033770,1720014647929,-500.0,0.00015545,2]
[331033771,1720014647938,-795.76,0.00015545,2]
[331033772,1720014647947,-1866.31,0.00015545,2]
[331033773,1720014647956,-878.87392263,0.00015546,2]
[331033775,1720014704260,156.53699066,9.999e-05,2]
[331033781,1720014812849,1993.80681274,0.00025999,120]
[331033783,1720014820930,158.13258682,9.999e-05,2]
[331033791,1720014922656,991.91040978,9.999e-05,2]
[331033792,1720015011611,991.91040978,9.999e-05,2]
[331033793,1720015108120,991.91040978,9.999e-05,2]
[331033794,1720015222342,991.91040978,9.999e-05,2]
[331033797,1720015325182,991.91040978,9.999e-05,2]
[331033803,1720015414136,991.91040978,9.999e-05,2]
[331033804,1720015515153,678.49395934,9.999e-05,2]
[331033808,1720015552171,-153.0,0.00012629,2]
[331033809,1720015552193,-194.5475173,0.00014594,2]
[331033810,1720015552213,-20.32800548,0.00014919,2]
[331033811,1720015592124,-194.54825281,0.00014919,2]
[331033812,1720015627157,-662.12374171,0.00014919,2]
[331033813,1720015627185,-264.94104194,0.00014997,2]
[331033814,1720015629224,-431.34895806,0.00014997,2]
[331033815,1720015629251,-8.62058528,0.00014997,2]
[331033816,1720015633130,-425.57,0.00014997,2]
[331033817,1720015635143,-412.68552302,0.00014997,2]
[331033818,1720015640114,-157.6938917,0.00014997,2]
[331033819,1720015640141,-500.0,0.00014997,2]
[331033820,1720015640165,-210.98216367,0.00014999,2]
[331033821,1720015640193,-2126.25063044,0.00014999,2]
[331033822,1720015640219,-4710.36485402,0.00014999,2]
[331033823,1720015640244,-500.40189078,0.00014999,2]
[331033824,1720015640446,-807.95624244,0.00015,2]
[331033825,1720015640475,-458.85357432,0.00015,2]
[331033865,1720015832820,-476.14397417,0.00014999,2]
[331033867,1720015832832,-462.228,0.00014999,2]
[331033959,1720015839351,-309.39970369,0.00014999,2]
[331033960,1720015839364,-2394.75488129,0.00014999,2]
[331033961,1720015839373,-318.7367282,0.00014999,2]
[331033962,1720015839383,-1961.48017767,0.00015,2]
[331033963,1720015839393,-1038.98711475,0.00015,2]
[331033964,1720015839403,-948.76659777,0.00015,2]
[331033965,1720015839412,-155.0,0.00015,2]
[331033966,1720015839423,-155.0,0.00015,2]
[331033967,1720015839432,-16236.94724821,0.00015,2]
[331033968,1720015839442,-159.71121378,0.00015164,2]
[331033969,1720015839452,-500.0,0.0001526,2]
[331033970,1720015839463,-390.61493833,0.0001526,2]
[331034029,1720015844055,-109.38506167,0.0001526,2]
[331034031,1720015844065,-450.97802154,0.0001526,2]
[331034035,1720015844096,-49.02197846,0.0001526,2]
[331034037,1720015844105,-130.90470993,0.0001526,2]
[331034071,1720015844398,-369.09529007,0.0001526,2]
[331034073,1720015844407,-500.0,0.0001526,2]
[331034075,1720015844416,-500.0,0.0001526,2]
[331034077,1720015844426,-500.0,0.0001526,2]
[331034079,1720015844435,-500.0,0.0001526,2]
[331034081,1720015844444,-500.0,0.0001526,2]
[331034083,1720015844454,-500.0,0.0001526,2]
[331034085,1720015844463,-500.0,0.0001526,2]
[331034087,1720015844472,-500.0,0.0001526,2]
[331034089,1720015844482,-500.0,0.0001526,2]
[331034091,1720015844491,-500.0,0.0001526,2]
[331034093,1720015844500,-500.0,0.0001526,2]
[331034095,1720015844510,-500.0,0.0001526,2]
[331034097,1720015844519,-500.0,0.0001526,2]
[331034099,1720015844528,-500.0,0.0001526,2]
[331034101,1720015844537,-500.0,0.0001526,2]
[331034103,1720015844546,-500.0,0.0001526,2]
[331034104,1720015844555,-300.0,0.0001526,2]
[331034105,1720015844564,-500.0,0.0001526,2]
[331034107,1720015844573,-179.69993362,0.0001526,2]
[331034108,1720015844583,-500.0,0.0001526,2]
[331034110,1720015844592,-500.0,0.0001526,2]
[331034112,1720015844601,-500.0,0.0001526,2]
[331034114,1720015844611,-500.0,0.0001526,2]
[331034116,1720015844620,-604.00664568,0.0001526,2]
[331034118,1720015844630,-500.0,0.0001526,2]
[331034120,1720015844639,-500.0,0.0001526,2]
[331034122,1720015844648,-500.0,0.0001526,2]
[331034124,1720015844658,-500.0,0.0001526,2]
[331034126,1720015844667,-500.0,0.0001526,2]
[331034128,1720015844677,-500.0,0.0001526,2]
[331034130,1720015844686,-500.0,0.0001526,2]
[331034132,1720015844696,-500.0,0.0001526,2]
[331034133,1720015844705,-500.0,0.0001526,2]
[331034135,1720015844714,-500.0,0.0001526,2]
[331034138,1720015844724,-500.0,0.0001526,2]
[331034139,1720015844734,-466.21968011,0.0001526,2]
[331034143,1720015844757,-33.78031989,0.0001526,2]
[331034145,1720015844767,-307.20175991,0.0001526,2]
[331034147,1720015844777,-206.01723877,0.0001526,2]
[331034149,1720015844787,-500.0,0.0001526,2]
[331034151,1720015844796,-500.0,0.0001526,2]
[331034153,1720015844806,-500.0,0.00015264,2]
[331034155,1720015844817,-500.09,0.00015264,2]
[331034157,1720015844826,-807.99,0.00015264,2]
[331034159,1720015844835,-644.92068143,0.00015264,2]
[331034172,1720015847307,-266.20931857,0.00015264,2]
[331034174,1720015847320,-1094.15,0.00015264,2]
[331034175,1720015847329,-500.0,0.00015264,2]
[331034176,1720015847338,-500.0,0.00015265,2]
[331034177,1720015847347,-500.0,0.00015265,2]
[331034178,1720015847356,-500.0,0.00015267,2]
[331034179,1720015847367,-500.0,0.00015267,2]
[331034180,1720015847378,-500.0,0.00015267,2]
[331034181,1720015847387,-500.0,0.00015267,2]
[331034182,1720015847397,-169.64,0.00015267,2]
[331034183,1720015847406,-500.0,0.00015267,2]
[331034184,1720015847416,-185.53597524,0.00015267,2]
[331034185,1720015847425,-500.0,0.00015267,2]
[331034186,1720015847435,-500.0,0.00015267,2]
[331034187,1720015847444,-500.0,0.00015267,2]
[331034188,1720015847454,-500.0,0.00015267,2]
[331034189,1720015847463,-400.94264862,0.00015267,2]
[331034190,1720015847473,-1004.57,0.00015271,2]
[331034191,1720015847482,-500.0,0.00015271,2]
[331034192,1720015847491,-877.0,0.00015419,2]
[331034193,1720015847501,-3937.31095379,0.0001551,2]
[331034194,1720015847511,-500.0,0.00015537,2]
[331034195,1720015847520,-500.0,0.00015537,2]
[331034196,1720015847530,-500.0,0.00015537,2]
[331034197,1720015847539,-500.0,0.00015537,2]
[331034198,1720015847549,-500.0,0.00015537,2]
[331034199,1720015847558,-504.11979626,0.00015537,2]
[331034200,1720015847568,-500.0,0.00015537,2]
[331034201,1720015847577,-257.7945823,0.00015537,2]
[331034202,1720015847586,-454.78265769,0.00015537,2]
[331034203,1720015847595,-500.0,0.00015537,2]
[331034204,1720015847604,-500.0,0.00015537,2]
[331034205,1720015847614,-500.0,0.00015537,2]
[331034206,1720015847623,-500.0,0.00015537,2]
[331034207,1720015847633,-464.25215059,0.00015537,2]
[331034208,1720015847643,-586.12387055,0.00015537,2]
[331034209,1720015847652,-500.0,0.00015537,2]
[331034210,1720015847661,-287.34513809,0.00015537,2]
[331034211,1720015847670,-500.0,0.00015537,2]
[331034212,1720015847679,-500.0,0.00015537,2]
[331034213,1720015847688,-500.0,0.00015537,2]
[331034214,1720015847698,-374.32616764,0.00015537,2]
[331034215,1720015847708,-501.34859343,0.00015537,2]
[331034216,1720015847717,-500.0,0.00015537,2]
[331034217,1720015847726,-500.0,0.00015537,2]
[331034218,1720015847736,-500.0,0.00015537,2]
[331034219,1720015847745,-500.0,0.00015537,2]
[331034220,1720015847754,-500.0,0.00015537,2]
[331034221,1720015847763,-500.0,0.00015537,2]
[331034222,1720015847773,-500.0,0.00015537,2]
[331034223,1720015847783,-500.0,0.00015537,2]
[331034224,1720015847792,-472.82445028,0.00015537,2]
[331034225,1720015847806,-27.17554972,0.00015537,2]
[331034226,1720015847815,-500.0,0.00015537,2]
[331034227,1720015847830,-279.48480104,0.00015537,2]
[331034228,1720015847844,-220.51519896,0.00015537,2]
[331034229,1720015847854,-349.59473657,0.00015537,2]
[331034230,1720015847864,-79.02824849,0.00015537,2]
[331034233,1720015947261,227.04137473,9.999e-05,2]
[331034234,1720015947281,72.15148623,9.999e-05,2]
[331034235,1720015980583,157.37635578,9.999e-05,2]
[331034236,1720015982800,954.78297814,9.999e-05,2]
[331034237,1720015983436,155.7966389,9.999e-05,2]
[331034238,1720016010796,16236.94724821,9.999e-05,2]
[331034240,1720016057243,991.91040978,9.999e-05,2]
[331034241,1720016108732,547.8531606,9.999e-05,2]
[331034243,1720016119770,16213.86534004,9.999e-05,2]
[331034247,1720016162195,991.91040978,9.999e-05,2]
[331034248,1720016163398,195.36743126,0.0001,2]
[331034251,1720016213678,365.2354404,0.0001,2]
[331034253,1720016261418,195.36743126,0.0001,2]
[331034255,1720016270211,991.91040978,9.999e-05,2]
[331034256,1720016288215,6090.8759091,0.0001,2]
[331034257,1720016299680,304.362867,9.999e-05,2]
[331034261,1720016331813,9348.99851301,9.999e-05,2]
[331034262,1720016331848,327.03416856,9.999e-05,2]
[331034263,1720016331882,284.14600271,9.999e-05,2]
[331034264,1720016331915,845.14803391,9.999e-05,2]
[331034265,1720016331947,510.06107788,9.999e-05,2]
[331034266,1720016331979,827.76486182,9.999e-05,2]
[331034267,1720016332013,900.96016215,9.999e-05,2]
[331034268,1720016332047,3176.54895801,9.999e-05,2]
[331034269,1720016352429,195.36743126,0.0001,2]
[331034270,1720016362081,161.6046052,9.999e-05,2]
[331034271,1720016364024,1024.26877066,9.999e-05,2]
[331034272,1720016382278,158.57305371,9.999e-05,2]
[331034275,1720016453431,213.89770622,0.0001,2]
[331034276,1720016508919,337.0,0.00025999,120]
[331034283,1720016731169,-158.57305371,0.0001212,2]
[331034284,1720016731190,-388.83381304,0.00014317,2]
[331034286,1720016825130,-153.0,0.00012176,2]
[331034287,1720016825149,-63.80646707,0.00012178,2]
[331034288,1720016826106,-89.19353293,0.00012178,2]
[331034289,1720016826127,-153.0,0.00012178,2]
[331034290,1720016826147,-630.00937913,0.00014317,2]
[331034291,1720016826177,-569.60657873,0.00014317,2]
[331034292,1720016837112,-155.749614,0.00014221,2]
[331034293,1720016838168,-537.846917,0.00014221,2]
[331034294,1720016842144,-441.81465404,0.00014221,2]
[331034301,1720016961110,-159.71121372,0.00014217,2]
[331034302,1720016961129,-500.0,0.0001422,2]
[331034303,1720016961149,-353.29999262,0.0001422,2]
[331034304,1720016961169,-500.0,0.0001422,2]
[331034305,1720016961189,-500.0,0.0001422,2]
[331034306,1720016961208,-400.44518285,0.0001422,2]
[331034307,1720016961228,-500.0,0.0001422,2]
[331034308,1720016961248,-500.0,0.0001422,2]
[331034309,1720016961267,-462.065268,0.0001422,2]
[331034310,1720016961286,-500.0,0.0001422,2]
[331034311,1720016961306,-500.0,0.0001422,2]
[331034312,1720016961326,-500.0,0.0001422,2]
[331034313,1720016961345,-500.0,0.0001422,2]
[331034314,1720016961364,-500.0,0.0001422,2]